Cogmind - Beta 13 @@@ ROGUE MODE // 2024.04.01 @ 15:55:01 Player: CrimsonOccultist Result: Destroyed by as-55633 with Assembled Rifle Performance ------------- Evolutions (0) 0 Regions Visited (2) 400 Robots Destroyed (25) 125 Value Destroyed (653) 653 Prototype IDs (2) 40 Alien Tech Used (0) 0 Bonus (0) 0 TOTAL SCORE: 1218 Bonus ------- None Cogmind --------- Core Integrity 0/250 Matter 261/300 Energy 54/100 System Corruption 8% Temperature Cool (21) Movement Core (150) Ox2 Location -10/Mines Parts ------- > --- POWER (1) -------- (None) > --- PROPULSION (2) --- (None) > --- UTILITY (2) ------ Targeting Computer > --- WEAPON (2) ------- Pulse Rifle Rocket Launcher > --- INVENTORY (5) ---- Aluminum Leg Aluminum Leg Improved Propulsion Shielding Reactive Plating Assault Rifle Peak State ------------ > --- POWER ------------ Light Nuclear Core > --- PROPULSION ------- Light Treads Light Treads > --- UTILITY ---------- Improved Signal Interpreter Targeting Computer > --- WEAPON ----------- Pulse Rifle Assault Rifle > --- INVENTORY -------- Aluminum Leg Aluminum Leg Improved Propulsion Shielding Reactive Plating Rocket Launcher [Rating: 14] Favorites ----------- Power Light Ion Engine Engine Light Ion Engine Power Core Light Nuclear Core Propulsion Light Treads Treads Light Treads Utility Light Armor Plating Storage Small Storage Unit Processor Signal Interpreter Protection Light Armor Plating Weapon EM Pulse Gun Energy Gun EM Pulse Gun Ballistic Gun Light Assault Rifle Launcher Grenade Launcher Build | -11 -10 -10 ------- Run | Yrd Mat Min Slots Evolved . | . . . Power . | . . . Propulsion . | . . . Utility . | . . . Weapon . | . . . Parts Attached 27 | 6 10 11 Power 3 | 1 1 1 Engine 2 | 1 1 . Core 1 | . . 1 Reactor . | . . . Propulsion 2 | 2 . . Treads 2 | 2 . . Leg . | . . . Wheel . | . . . Hover . | . . . Flight . | . . . Utility 6 | 1 3 2 Device . | . . . Storage 1 | 1 . . Processor 3 | . 1 2 Hackware . | . . . Protection 2 | . 2 . Artifact . | . . . Weapon 16 | 2 6 8 Energy Gun 3 | 2 . 1 Energy Cannon . | . . . Ballistic Gun 8 | . 5 3 Ballistic Cannon . | . . . Launcher 5 | . 1 4 Special Weapon . | . . . Impact Weapon . | . . . Slashing Weapon . | . . . Piercing Weapon . | . . . Special Melee Weapon . | . . . Unidentified Prototypes . | . . . Parts Lost 8 | . . 8 Power 2 | . . 2 Propulsion 2 | . . 2 Utility 3 | . . 3 Weapon 1 | . . 1 Highest Loss Streak 4 | . . 4 To Critical Strikes . | . . . Average Slot Usage (%) 96 | . 99 88 Engine 11 | . 14 3 Core 2 | . . 9 Treads 27 | . 28 26 Storage 2 | . 3 . Processor 13 | . 10 20 Protection 11 | . 13 3 Energy Gun 9 | . 10 5 Ballistic Gun 17 | . 17 17 Naked Turns . | . . . Heaviest Build 17 | 14 17 11 Greatest Support 40 | 40 40 40 Greatest Overweight (x) 1 | . . 1 Average Overweight (x) . | . . . Largest Inventory Capacity 8 | 8 8 5 Average Capacity 5 | 6 5 5 Most Carried 8 | 4 8 5 Average Carried 4 | 1 4 4 Final Capacity 8 | 8 5 5 Final Carried 5 | 4 5 5 Class Distribution -------------------- 100% | Mutant Dominant Class ---------------- Mutant | -10/Materials Mutant | -10/Mines Resources | -11 -10 -10 ----------- Run | Yrd Mat Min Matter Collected 660 | 204 252 204 Remotely . | . . . Salvage Created 696 | . 437 259 Parts 50 | . 35 15 Haulers Intercepted . | . . . Recyclers Shooed . | . . . Parts Field Recycled . | . . . Retrieved Matter . | . . . Parts Self-Destructed . | . . . Prevented . | . . . Kills | -11 -10 -10 ------- Run | Yrd Mat Min Combat Hostiles Destroyed 22 | . 10 12 Guns 9 | . 6 3 AOE 13 | . 4 9 Classes Destroyed 9 | . 6 3 Worker 1 | . 1 . Builder 1 | . 1 . Recycler 1 | . . 1 Operator 1 | . 1 . Watcher 2 | . 2 . Swarmer 6 | . 3 3 Grunt 12 | . 7 5 Demolisher 1 | . . 1 Assembled 3 | . . 3 Best Kill Streak 4 | . 4 4 Combat Bots Only 4 | . 4 4 Max Kills in Single Turn 3 | . 3 2 Gunslinging . | . . . Exploded 2 | . 2 2 Melee . | . . . Uniques/NPCs Destroyed . | . . . Combat | -11 -10 -10 -------- Run | Yrd Mat Min Hostile Shots Fired 59 | . 30 29 Missed 15 | . 7 8 Damage Taken 1085 | . 323 762 Core 258 | . 31 227 Absorbed by Shields . | . . . Core Remaining (%) 100 | 100 . . Volleys Fired 53 | . 36 17 Largest 2 | . 2 2 Hottest 96 | . 80 96 Shots Fired 103 | . 72 31 Gun 91 | . 70 21 Cannon . | . . . Launcher 12 | . 2 10 Special . | . . . Kinetic 65 | . 48 17 Thermal 4 | . . 4 Explosive 12 | . 2 10 Electromagnetic 22 | . 22 . Robot Hit Streak 8 | . 8 7 Robot Miss Streak 4 | . 4 1 Penetration Max . | . . . Secondary Targets . | . . . Shots Hit Robots 49 | . 35 14 Core Hits 49 | . 22 27 Critical Kills . | . . . Critical Parts Destroyed . | . . . Critical Strikes 1 | . 1 . Corrupt 1 | . 1 . Melee Attacks . | . . . Impact . | . . . Slashing . | . . . Piercing . | . . . Sneak Attacks . | . . . Combat Hostiles . | . . . Follow-up Attacks . | . . . Damage Inflicted 1378 | . 599 779 Guns 582 | . 409 173 Cannons . | . . . Explosions 792 | . 188 604 Melee . | . . . Ramming 4 | . 2 2 Kinetic 337 | . 199 138 Thermal 68 | . 33 35 Explosive 759 | . 155 604 Electromagnetic 210 | . 210 . Impact . | . . . Slashing . | . . . Piercing . | . . . Highest Corruption 8 | . . 8 Average Corruption 5 | . . 5 Corruption Purged . | . . . Corruption Blocked . | . . . Effects 6 | . . 6 Message Errors 1 | . . 1 Matter Fused 2 | . . 2 Energy Discharges 1 | . . 1 Data Loss (minor) 1 | . . 1 Misfires 1 | . . 1 Overload Shots . | . . . Overflow Damage . | . . . Projectiles . | . . . Explosions . | . . . Melee . | . . . Knockbacks . | . . . Impact . | . . . Kinetic . | . . . Secondary . | . . . Self-Inflicted Damage 53 | . 50 3 Shots 3 | . 2 1 Rammed 2 | . 1 1 Targets Rammed 2 | . 1 1 Kicked . | . . . Crushed . | . . . Highest Temperature 163 | . 163 27 Average Temperature 35 | . 40 9 Received Heat Transfer 219 | . 147 72 Siege Activations . | . . . Robots Corrupted . | . . . Combat Hostiles . | . . . Parts Fried 1 | . 1 . Impact Corruptions . | . . . Robots Melted . | . . . Combat Hostiles . | . . . Parts Melted . | . . . Heat Transferred 124 | . 50 74 Parts Sabotaged . | . . . Parts Stolen . | . . . Parts Stripped . | . . . Power Chain Reactions 1 | . 1 . Alert | -11 -10 -10 ------- Run | Yrd Mat Min Peak Influence 255 | . 211 255 Initial 40 | . . 40 Average 107 | . 87 200 Maximum Alert Level 1 | . 1 1 Low Security (%) 73 | 100 87 23 Level 1 26 | . 12 76 Level 2 . | . . . Level 3 . | . . . Level 4 . | . . . Level 5 . | . . . High Security . | . . . Max Security . | . . . Squads Dispatched 4 | . 3 1 Investigation 3 | . 2 1 Extermination . | . . . Reinforcement 1 | . 1 . Assault . | . . . Garrison . | . . . Intercept . | . . . Searches Triggered . | . . . Construction Impeded . | . . . Haulers Reinforced . | . . . Active Scanning Responses . | . . . Cargo Convoy Interrupts . | . . . Stealth | -11 -10 -10 --------- Run | Yrd Mat Min Distress Signals . | . . . Communications Jammed . | . . . Distress Signals . | . . . Times Spotted 37 | . 18 19 Peak Tracking Total 8 | . 4 8 Tactical Retreats . | . . . Traps | -11 -10 -10 ------- Run | Yrd Mat Min Traps Triggered 2 | . 2 . Indirectly . | . . . Trap Hack Attempts . | . . . Triggered . | . . . Disarmed . | . . . Reprogrammed . | . . . Reused . | . . . Traps Extracted . | . . . Installed . | . . . Triggered . | . . . Machines | -11 -10 -10 ---------- Run | Yrd Mat Min Machines Disabled 2 | . 1 1 Max in Single Turn 1 | . 1 1 Machines Repaired . | . . . Machines Dismantled . | . . . Machines Sabotaged . | . . . Overloaded Fab Kills . | . . . Hacking | -11 -10 -10 --------- Run | Yrd Mat Min Machines Accessed 9 | . 8 1 Terminals 6 | . 6 . Fabricators . | . . . Repair Stations . | . . . Recycling Units 2 | . 2 . Scanalyzers . | . . . Garrison Access . | . . . Total Hacks 20 | . 19 1 Successful 11 | . 10 1 Failed 9 | . 9 . Catastrophic 2 | . 2 . Database Lockouts . | . . . Manual . | . . . Terminals 15 | . 15 . Fabricators . | . . . Repair Stations . | . . . Recycling Units 4 | . 4 . Scanalyzers . | . . . Garrison Access . | . . . Terminal Hacks 8 | . 7 1 Record 1 | . 1 . Prototype ID Bank 1 | . 1 . Open Door 1 | . . 1 Alert Level 1 | . 1 . Locate Traps 1 | . 1 . Security Status 1 | . 1 . Hauler Manifests 1 | . 1 . Registered Components 1 | . 1 . Fabricator Hacks . | . . . Repair Station Hacks . | . . . Recycling Unit Hacks 3 | . 3 . Retrieve Components 3 | . 3 . Scanalyzer . | . . . Garrison Access Hacks . | . . . Unauthorized Hacks . | . . . Terminals . | . . . Fabricators . | . . . Repair Stations . | . . . Recycling Units . | . . . Scanalyzers . | . . . Garrison Access . | . . . Data Cores Recovered 1 | . 1 . Used 1 | . 1 . Hacking Detections 8 | . 8 . Full Trace Events 3 | . 3 . Feedback Events . | . . . Feedback Blocked . | . . . Robot Schematics Acquired . | . . . Robots Built . | . . . Authchips . | . . . Time . | . . . Total Robot Build Rating . | . . . Part Schematics Acquired . | . . . Parts Built . | . . . Authchips . | . . . Time . | . . . Total Part Build Rating . | . . . Parts Repaired . | . . . Time . | . . . Parts Recycled . | . . . Recycled Matter . | . . . Retrieved Matter . | . . . Retrieved Components 2 | . 2 . Parts Scanalyzed . | . . . Part Schematics Acquired . | . . . Parts Damaged . | . . . Bothacking | -11 -10 -10 ------------ Run | Yrd Mat Min Used RIF Installer . | . . . Robots Hacked . | . . . Non-combat . | . . . Combat . | . . . Robot Hacks Applied . | . . . Relay Couplers Released . | . . . Fabnet Peak Effective % . | . . . Robots Rewired . | . . . Allies Hacked . | . . . Hacks Repelled . | . . . Allies | -11 -10 -10 -------- Run | Yrd Mat Min Total Allies . | . . . Largest Group . | . . . Highest-Rated Group . | . . . Highest-Rated Ally . | . . . Total Orders . | . . . Ally Attacks . | . . . Total Damage . | . . . Kills . | . . . Allies Corrupted . | . . . Allies Melted . | . . . Intel | -11 -10 -10 ------- Run | Yrd Mat Min Robot Analysis Total . | . . . Derelict Logs Recovered . | . . . Drone Launches . | . . . Drone Recoveries . | . . . Exploration | -11 -10 -10 ------------- Run | Yrd Mat Min Turns Passed 2010 | 152 1390 468 Spaces Moved 1105 | 85 769 251 Core 12 | 2 . 10 Treads 1093 | 83 769 241 Legs . | . . . Wheels . | . . . Hover . | . . . Flight . | . . . Fastest Speed 50 | 50 160 100 Average Speed 159 | 157 160 157 Slowest Speed 160 | 160 160 160 Overloaded Moves . | . . . Propulsion Burnouts . | . . . Robots Hopped . | . . . Cave-ins Triggered 1 | . . 1 Exploration Rate (%) 49 | 4 93 50 Regions Visited 2 Branch Regions 1 Pre-discovered Areas . | . . . Known Exits Taken 1 | . 1 . Unknown Exits Taken 1 | 1 . . Scrap Searched . | . . . Spaces Dug . | . . . Terrain Destroyed 89 | . 9 80 Melee . | . . . Projectile . | . . . AOE 89 | . 9 80 Terrain Rammed . | . . . Walls Destroyed . | . . . Machines Disabled . | . . . Actions | -11 -10 -10 --------- Run | Yrd Mat Min Total 1256 | 100 864 292 Wait 46 | 6 32 8 Move 1103 | 84 768 251 Hop . | . . . Pick Up 11 | 4 4 3 Fast Attach 15 | 6 7 2 Attach 3 | . 1 2 Detach 4 | . 4 . Swap 9 | . 2 7 Drop 8 | . 7 1 Fire 53 | . 36 17 Melee . | . . . Ram . | . . . Kick . | . . . Crush 2 | . 1 1 Escape Stasis . | . . . Rewire 2 | . 2 . Trap . | . . . Miscellaneous . | . . . Route ------- -11/Scrapyard -10/Materials (discovered 4 exits: *Mat x2 / *Min x2) -10/Mines (discovered 1 exit: *Mat) History --------- Turn | Location | Event 21 | -11/Scrapyard | Discovered new exit (range 14) 153 | -11/Scrapyard | Entered Materials 315 | -10/Materials | Build established: Mutant 711 | -10/Materials | Discovered new exit (range 6) 717 | -10/Materials | Identified exit to Mines 875 | -10/Materials | Discovered exit to Mines (range 11) 927 | -10/Materials | Discovered new exit (range 10) 939 | -10/Materials | Identified exit to Materials 1329 | -10/Materials | Discovered exit to Materials (range 8) 1543 | -10/Materials | Entered Mines 1693 | -10/Mines | Crushed by falling debris 1693 | -10/Mines | Core integrity fell below 50% 1770 | -10/Mines | Discovered exit to Materials (range 10) 1811 | -10/Mines | Met a Derelict shopkeep closing up shop 1947 | -10/Mines | Received a Rocket Launcher from a helpful Derelict 1977 | -10/Mines | Assembled infested the area 1982 | -10/Mines | Assisted by a Guerilla fighting off Assembled 2011 | -10/Mines | Core integrity fell below 20% 2011 | -10/Mines | Destroyed by as-55633 with Assembled Rifle Last Messages --------------- 01990_ D-53 Grenadier suffers critical hit (Destroy). 01990_ D-53 Grenadier knocked back. 01990_ U-05 Engineer builds a Wall. 01992_ HV Slug penetrates D-53 Grenadier. 01992_ D-53 Grenadier knocked back. 01993_ OX-3DC(h) destroyed. 01997_ D-53 Grenadier destroyed. 01999_ The unstable cave ceiling collapses. 02000_ U-05 Engineer builds a Wall. 02004_ U-05 Engineer lays Concrete. 02005_ The unstable cave ceiling collapses. 02005_ U-05 Engineer builds a Wall. 02006_ The unstable cave ceiling collapses. 02008_ Imp. Signal Interpreter destroyed. 02008_ System corrupted by crushing effect (+3). 02008_ as-48726 destroyed. 02010_ U-05 Engineer builds a Wall. 02011_ as-68092 destroyed. 02011_ as-26921 destroyed. Map ----- +----------------------------------------------------+ | | | | | | | | | | | | | ?????????????????????????????????????????????????? | | ?????????????????????????????????????????????????? | | ????????????????????#######??????????????????????? | | ?########?????####### ##?????????????????????? | | ## ##????# ] #?????????????????????? | | # ##???# #### #?????????????????????? | | # ##??# #??## ### #?????????????????????? | | # #### #???####?# #?????????????????????? | | ## ## ##???????# #?????????????????????? | | ?##### #####???# #?????????????????????? | | ?????### #?### ####??????????????????? | | ??####?## ## ### #??????????????????? | | ??#"/### ### ## #??????????????????? | | ??#" #X ## #?#????????????????? | | ??#"/ ### #### #### #????????????????? | | ??#" ##?# #?# # uu #????????????????? | | ??#"/ # #### #?# #####????????????????? | | ??#"[### =%[=#?# #??????????????????? | | ??####?## ####*### ###??????????????????? | | ????????# ##?## # @ #??????????????????? | | ????????## ##### =a a ###??????????????????? | | ?????????#### ???????????????????? | | ??????????## < a ?????????????????? | | ??????????# % ] a##????????????????? | | ??????????# # #?????????????????? | | ??????????## ### #?????????????????? | | ???????????# ######?## a#?????????????????? | | ???????????# ##???????#####$ #?????????????????? | | ???????????# ##????????????? #?????????????????? | | ???????????# #######???????? ?????????????????? | | ???????????# #????????? ????????????????? | | ???????##### ##### #????????? ????????????????? | | ???????# #????????????????% ????????????????? | | ???????# ######??????????????????????????????????? | | ???????# #???????????????????????????????????????? | | ??????## #???????????????????????????????????????? | | ?????## ##??????????????????????????????????????? | | ?????# ##?????????????????????????????????????? | | ????## #?????????????????????????????????????? | | ?#### #?????????????????????????????????????? | | ## ##????????????????????????????????????? | | ##???????????????????????????????????? | | ##???????????????????????????? ????? | | # ##??????????????????????????? ????? | +----------------------------------------------------+ Best States ------------- Heat Dissipation 25 Energy Generation 14 Energy Capacity 250 Matter Stores 300 Matter Capacity 300 Sight Range 16 Terrain Scan Density 10 Armor Coverage 150 Weapon Shielding 33 Evasion (%) 40 Targeting Accuracy 5 Recoil Reduction 2 Item Schematics ----------------- None Robot Schematics ------------------ None Fabricated ------------ Nothing Alien Tech Used ----------------- None Achievements -------------- Unlikely Earthworm Challenges ------------ None Game ------ Seed WarpCobblerDriver Manual? 0 Play Time 00:17:40 Cumulative 7.0 hours Start 2024.04.01 @ 15:36:03 End 2024.04.01 @ 15:55:01 Sessions 2 Manual Loads 0 Difficulty Rogue Special Mode None Game No. 9 Rogue 9 Adventurer 0 Explorer 0 Win Type - Total 0 Types 0/0/0/0/0/0/0/0/0 Lore% 5 Gallery% 10 Achievement% 14 Wizard Run 0 Options --------- Layout 2 ASCII 0 Keyboard 1 Movement Numpad Keybinds 0 Fullscreen 1 Font 24/Smallcaps Map View 50x44 Zoom Use 0% Tactical HUD 1 Map Filters NONE Filters NONE Steam 1 RUN: bce375c5-5c86-4c2a-a600-36c30563f1ce